[Event "Winter CCCSA-IM 2020"]
[Site "Charlotte"]
[Date "2020.01.17"]
[Round "2.1"]
[White "Berczes, David"]
[Black "Liang, Jason"]
[Result "1/2-1/2"]
[ECO "B11"]
[WhiteElo "2433"]
[BlackElo "2353"]
[Annotator "ChessBase"]
[PlyCount "74"]
[EventDate "2020.01.17"]
[EventType "tourn"]
[EventCountry "USA"]
[SourceTitle "playchess.com"]
[Source "ChessBase"]
[SourceQuality "1"]
[TimeControl "5400+30"]

1. e4 {[%emt 1:30:30]} c6 {[%emt 1:30:30]} 2. Nc3 {[%emt 0:00:30]} d5 {[%emt 0:00:30]} 3. Nf3 {[%emt 0:00:30]} dxe4 {[%emt 0:00:30]} 4. Nxe4 {[%emt 0:00:30]} Nf6 {[%emt 0:00:30]} 5. Qe2 {[%emt 0:00:30]} Nxe4 {[%emt 0:00:30]} 6. Qxe4 {[%emt 0:00:30]} Qa5 {[%emt 0:00:30]} 7. b4 {[%emt 0:00:30]} Qf5 {[%emt 0:00:30]} 8. Qe3 {[%emt 0:00:30]} Qxc2 {[%emt 0:00:30]} 9. Bd3 {[%emt 0:00:30]} Qa4 {[%emt 0:00:30]} 10. a3 {[%emt 0:00:30]} Bg4 {[%emt 0:00:30]} 11. O-O {[%emt 0:00:30]} Bxf3 {[%emt 0:00:30]} 12. Qxf3 {[%emt 0:00:30]} Nd7 {[%emt 0:00:30]} 13. Re1 {[%emt 0:00:30]} Qb3 {[%emt 0:00:30]} 14. Rb1 {[%emt 0:00:30]} Qd5 {[%emt 0:00:30]} 15. Be4 {[%emt 0:00:30]} Qd6 {[%emt 0:00:30]} 16. b5 {[%emt 0:00:30]} Rc8 {[%emt 0:00:30]} 17. bxc6 {[%emt 0:00:30]} bxc6 {[%emt 0:00:30]} 18. d4 {[%emt 0:00:30]} Nf6 {[%emt 0:00:30]} 19. Bf4 {[%emt 0:00:30]} Qd7 {[%emt 0:00:30]} 20. Rb8 {[%emt 0:00:30]} Nxe4 {[%emt 0:00:30]} 21. Rxc8+ {[%emt 0:00:30]} Qxc8 {[%emt 0:00:30]} 22. Qxe4 {[%emt 0:00:30]} Qd7 {[%emt 0:00:30]} 23. Rc1 {[%emt 0:00:30]} e6 {[%emt 0:00:30]} 24. Rxc6 {[%emt 0:00:30]} Be7 {[%emt 0:00:30]} 25. Rc7 {[%emt 0:00:30]} Qa4 {[%emt 0:00:30]} 26. g3 {[%emt 0:00:30]} Bd8 {[%emt 0:00:30]} 27. Rb7 {[%emt 0:00:30]} O-O {[%emt 0:00:30]} 28. Bd6 {[%emt 0:00:30]} Re8 {[%emt 0:00:30]} 29. Qf3 {[%emt 0:00:30]} Bf6 {[%emt 0:00:30]} 30. Qh5 {[%emt 0:00:30]} g6 {[%emt 0:00:30]} 31. Qf3 {[%emt 0:00:30]} Qxd4 {[%emt 0:00:30]} 32. Qc6 {[%emt 0:00:30]} Qd1+ {[%emt 0:00:30]} 33. Kg2 {[%emt 0:00:30]} Rd8 {[%emt 0:00:30]} 34. Qc7 {[%emt 0:00:30]} Qd5+ {[%emt 0:00:30]} 35. Kg1 {[%emt 0:00:30]} Qd1+ {[%emt 0:00:30]} 36. Kg2 {[%emt 0:00:30]} Qd5+ {[%emt 0:00:30]} 37. Kg1 {[%emt 0:00:30]} Qd1+ {[%emt 0:00:30]} 1/2-1/2

[Event "Winter CCCSA-IM 2020"]
[Site "Charlotte"]
[Date "2020.01.17"]
[Round "2.4"]
[White "Francisco, Richard"]
[Black "Uyanga, Byambaa"]
[Result "1-0"]
[ECO "A26"]
[WhiteElo "2256"]
[BlackElo "2113"]
[Annotator "ChessBase"]
[PlyCount "73"]
[EventDate "2020.01.17"]
[EventType "tourn"]
[EventCountry "USA"]
[SourceTitle "playchess.com"]
[Source "ChessBase"]
[SourceQuality "1"]
[TimeControl "5400+30"]

1. c4 {[%emt 1:30:30]} Nf6 {[%emt 1:30:30]} 2. g3 {[%emt 0:00:30]} g6 {[%emt 0:00:30]} 3. Bg2 {[%emt 0:00:30]} Bg7 {[%emt 0:00:30]} 4. Nc3 {[%emt 0:00:30]} O-O {[%emt 0:00:30]} 5. e4 {[%emt 0:00:30]} e5 {[%emt 0:00:30]} 6. Nge2 {[%emt 0:00:30]} d6 {[%emt 0:00:30]} 7. d3 {[%emt 0:00:30]} Nh5 {[%emt 0:00:30]} 8. O-O {[%emt 0:00:30]} Nc6 {[%emt 0:00:30]} 9. Be3 {[%emt 0:00:30]} f5 {[%emt 0:00:30]} 10. exf5 {[%emt 0:00:30]} gxf5 {[%emt 0:00:30]} 11. f4 {[%emt 0:00:30]} Be6 {[%emt 0:00:30]} 12. Qd2 {[%emt 0:00:30]} Qd7 {[%emt 0:00:30]} 13. Rae1 {[%emt 0:00:30]} Rae8 14. b3 {[%emt 0:00:30]} Nd4 {[%emt 0:01:00]} 15. Kh1 {[%emt 0:00:30]} Bf7 {[%emt 0:00:30]} 16. Bg1 {[%emt 0:00:30]} Re6 {[%emt 0:00:30]} 17. Nxd4 {[%emt 0:00:30]} exd4 {[%emt 0:00:30]} 18. Nb5 {[%emt 0:00:30]} Rh6 {[%emt 0:00:30]} 19. Rf3 {[%emt 0:00:30]} Bd5 {[%emt 0:00:30]} 20. cxd5 {[%emt 0:00:30]} Qxb5 {[%emt 0:00:30]} 21. Re7 {[%emt 0:00:30]} Rf7 {[%emt 0:00:30]} 22. Qe1 {[%emt 0:00:30]} Kf8 {[%emt 0:00:30]} 23. Re6 {[%emt 0:00:30]} Nf6 {[%emt 0:00:30]} 24. Bxd4 {[%emt 0:00:30]} Rxh2+ {[%emt 0:00:30]} 25. Kxh2 {[%emt 0:00:30]} Ng4+ {[%emt 0:00:30]} 26. Kh1 {[%emt 0:00:30]} Bxd4 {[%emt 0:00:30]} 27. Qe2 {[%emt 0:00:30]} Qxd5 {[%emt 0:00:30]} 28. Rf1 {[%emt 0:00:30]} Qc5 {[%emt 0:00:30]} 29. Bf3 {[%emt 0:00:30]} Nf6 {[%emt 0:00:30]} 30. Kg2 {[%emt 0:00:30]} d5 {[%emt 0:00:30]} 31. Re1 {[%emt 0:00:30]} c6 {[%emt 0:00:30]} 32. Bh5 {[%emt 0:00:30]} Rd7 {[%emt 0:00:30]} 33. Rxf6+ {[%emt 0:00:30]} Bxf6 {[%emt 0:00:30]} 34. Qe8+ {[%emt 0:00:30]} Kg7 {[%emt 0:00:30]} 35. Qxd7+ {[%emt 0:00:30]} Kh6 {[%emt 0:00:30]} 36. Qxf5 {[%emt 0:00:30]} Qc3 {[%emt 0:00:30]} 37. Re6 {[%emt 0:00:30]} 1-0

[Event "Winter CCCSA-IM 2020"]
[Site "Charlotte"]
[Date "2020.01.17"]
[Round "2.5"]
[White "Wheeler, Cameron"]
[Black "Martin Del Campo C., Roberto"]
[Result "1-0"]
[ECO "E62"]
[WhiteElo "2383"]
[BlackElo "2322"]
[Annotator "ChessBase"]
[PlyCount "57"]
[EventDate "2020.01.17"]
[EventType "tourn"]
[EventCountry "USA"]
[SourceTitle "playchess.com"]
[Source "ChessBase"]
[SourceQuality "1"]
[TimeControl "5400+30"]

1. Nf3 {[%emt 1:30:30]} Nf6 {[%emt 1:30:30]} 2. c4 {[%emt 0:00:30]} d6 {[%emt 0:00:30]} 3. d4 {[%emt 0:00:30]} g6 {[%emt 0:00:30]} 4. g3 {[%emt 0:00:30]} Bg7 {[%emt 0:00:30]} 5. Bg2 {[%emt 0:00:30]} O-O {[%emt 0:00:30]} 6. O-O {[%emt 0:00:30]} Nc6 {[%emt 0:00:30]} 7. Nc3 {[%emt 0:00:30]} Bg4 {[%emt 0:00:30]} 8. d5 {[%emt 0:00:30]} Na5 {[%emt 0:00:30]} 9. b3 {[%emt 0:00:30]} c5 {[%emt 0:00:30]} 10. Bd2 {[%emt 0:00:30]} a6 {[%emt 0:00:30]} 11. h3 {[%emt 0:00:30]} Bd7 {[%emt 0:00:30]} 12. e4 {[%emt 0:00:30]} e5 {[%emt 0:00:30]} 13. dxe6 {[%emt 0:00:30]} Bxe6 {[%emt 0:00:30]} 14. Rc1 {[%emt 0:00:30]} b5 {[%emt 0:00:30]} 15. Ng5 {[%emt 0:00:30]} Rb8 {[%emt 0:00:30]} 16. e5 {[%emt 0:00:30]} dxe5 {[%emt 0:00:30]} 17. Nxe6 {[%emt 0:00:30]} fxe6 {[%emt 0:00:30]} 18. Qe1 {[%emt 0:00:30]} b4 {[%emt 0:00:30]} 19. Na4 {[%emt 0:00:30]} Nd7 {[%emt 0:00:30]} 20. Rd1 {[%emt 0:00:30]} Qc7 {[%emt 0:00:30]} 21. Qe4 {[%emt 0:00:30]} Nb6 {[%emt 0:00:30]} 22. Nb2 {[%emt 0:00:30]} Kh8 {[%emt 0:00:30]} 23. Be3 {[%emt 0:00:30]} Rf7 {[%emt 0:00:30]} 24. Rd2 {[%emt 0:00:30]} Nd7 {[%emt 0:00:30]} 25. Rfd1 {[%emt 0:00:30]} Nf6 {[%emt 0:00:30]} 26. Qh4 {[%emt 0:00:30]} Rd7 {[%emt 0:00:30]} 27. Rxd7 {[%emt 0:00:30]} Nxd7 {[%emt 0:00:30]} 28. Qe7 {[%emt 0:00:30]} Rd8 {[%emt 0:00:30]} 29. Bg5 {[%emt 0:00:30]} 1-0

[Event "Winter CCCSA-IM 2020"]
[Site "Charlotte"]
[Date "2020.01.18"]
[Round "4.5"]
[White "Liang, Jason"]
[Black "Uyanga, Byambaa"]
[Result "1-0"]
[ECO "B23"]
[WhiteElo "2353"]
[BlackElo "2113"]
[Annotator "RC"]
[PlyCount "101"]
[EventDate "2020.01.17"]
[EventType "tourn"]
[EventCountry "USA"]
[SourceTitle "playchess.com"]
[Source "ChessBase"]
[SourceQuality "1"]
[TimeControl "5400+30"]

1. e4 {[%emt 1:30:30]} c5 {[%emt 1:30:30]} 2. Nc3 {[%emt 0:00:30]} Nc6 {[%emt 0:00:30]} 3. Bb5 {[%emt 0:00:30]} Nd4 {[%emt 0:00:30]} 4. Bc4 {[%emt 0:00:30]} d6 {[%emt 0:00:30]} 5. Nge2 {[%emt 0:00:30]} Nf6 {[%emt 0:00:30]} 6. O-O {[%emt 0:00:30]} g6 {[%emt 0:00:30]} 7. d3 {[%emt 0:00:30]} Bg7 {[%emt 0:00:30]} 8. Nxd4 {[%emt 0:00:30]} cxd4 {[%emt 0:00:30]} 9. Ne2 {[%emt 0:00:30]} Nd7 {[%emt 0:00:30]} 10. Bg5 {[%emt 0:00:30]} h6 {[%emt 0:00:30]} 11. Bh4 {[%emt 0:00:30]} g5 {[%emt 0:00:30]} 12. Bg3 {[%emt 0:00:30]} e5 {[%emt 0:00:30]} 13. c3 {[%emt 0:00:30]} dxc3 {[%emt 0:00:30]} 14. Nxc3 {[%emt 0:00:30]} h5 {[%emt 0:00:30]} 15. f3 {[%emt 0:00:30]} Nb6 {[%emt 0:00:30]} 16. Bf2 {[%emt 0:00:30]} Nxc4 {[%emt 0:00:30]} 17. dxc4 {[%emt 0:00:30]} Be6 {[%emt 0:00:30]} 18. Qd3 {[%emt 0:00:30]} Rc8 {[%emt 0:00:30]} 19. b3 {[%emt 0:00:30]} a6 {[%emt 0:00:30]} 20. Rfd1 {[%emt 0:00:30]} Bf8 {[%emt 0:00:30]} 21. a4 {[%emt 0:00:30]} g4 {[%emt 0:00:30]} 22. Rf1 {[%emt 0:00:30]} Rg8 {[%emt 0:00:30]} 23. fxg4 {[%emt 0:00:30]} hxg4 {[%emt 0:00:30]} 24. Rad1 {[%emt 0:00:30]} Rh8 {[%emt 0:00:30]} 25. Kh1 {[%emt 0:00:30]} Qg5 {[%emt 0:00:30]} 26. Bg3 {[%emt 0:00:30]} Be7 {[%emt 0:00:30]} 27. Nd5 {[%emt 0:00:30]} Rc6 {[%emt 0:00:30]} 28. Ne3 {[%emt 0:00:30]} Rh5 {[%emt 0:00:30]} 29. Nf5 {[%emt 0:00:30]} Bxf5 {[%emt 0:00:30]} 30. Rxf5 {[%emt 0:00:30]} Qh6 {[%emt 0:00:30]} 31. Rxh5 {[%emt 0:00:30]} Qxh5 {[%emt 0:00:30]} 32. Rf1 {[%emt 0:00:30]} Bh4 {[%emt 0:00:30]} 33. Bxh4 {[%emt 0:00:30]} Qxh4 {[%emt 0:00:30]} 34. Qd5 {[%emt 0:00:30]} Qh7 {[%emt 0:00:30]} 35. Rf5 {[%emt 0:00:30]} Rb6 {[%emt 0:00:30]} 36. c5 {[%emt 0:00:30]} Rc6 {[%emt 0:00:30]} 37. b4 {[%emt 0:00:30]} g3 {[%emt 0:00:30]} 38. h3 {[%emt 0:00:30]} a5 {[%emt 0:00:30]} 39. Rf1 {[%emt 0:00:30]} Qg6 {[%emt 0:00:30]} 40. cxd6 {[%emt 0:00:30]} Rxd6 {[%emt 0:00:30]} 41. Qxe5+ {[%emt 0:00:30]} Kf8 {[%emt 0:00:30]} 42. Qxa5 {[%emt 0:00:30]} Qxe4 {[%emt 0:00:30]} 43. Qc7 {[%emt 0:00:30]} Qe7 {[%emt 0:00:30]} 44. Qc3 {[%emt 0:00:30]} Qg5 {[%emt 0:00:30]} 45. Qc8+ {[%emt 0:00:30]} Kg7 {[%emt 0:00:30]} 46. Qxb7 {[%emt 0:00:30]} Rf6 {[%emt 0:00:30]} 47. Rg1 {[%emt 0:00:30]} Rf2 {[%emt 0:00:30]} 48. Qe4 {[%emt 0:00:30]} f5 {[%emt 0:00:30]} 49. Qb7+ {[%emt 0:00:30]} Kg6 {[%emt 0:00:30]} 50. Re1 {[%emt 0:00:30]} Qe3 {[%emt 0:00:30]} 51. Qa6+ {[%emt 0:00:30]} 1-0

[Event "Winter CCCSA-IM 2020"]
[Site "Charlotte"]
[Date "2020.01.19"]
[Round "5.1"]
[White "Jacobson, Aaron"]
[Black "Berczes, David"]
[Result "1/2-1/2"]
[ECO "D24"]
[WhiteElo "2336"]
[BlackElo "2433"]
[Annotator "RC"]
[PlyCount "66"]
[EventDate "2020.01.17"]
[EventType "tourn"]
[EventCountry "USA"]
[SourceTitle "playchess.com"]
[Source "ChessBase"]
[SourceQuality "1"]
[TimeControl "5400+30"]

1. d4 {[%emt 1:30:30]} e6 {[%emt 1:30:30]} 2. Nf3 {[%emt 0:00:30]} Nf6 {[%emt 0:00:30]} 3. c4 {[%emt 0:00:30]} d5 {[%emt 0:00:30]} 4. Nc3 {[%emt 0:00:30]} dxc4 {[%emt 0:00:30]} 5. e4 {[%emt 0:00:30]} b5 {[%emt 0:00:30]} 6. e5 {[%emt 0:00:30]} Nd5 {[%emt 0:00:30]} 7. Nxb5 {[%emt 0:00:30]} Nb6 {[%emt 0:00:30]} 8. a4 {[%emt 0:00:30]} Ba6 {[%emt 0:00:30]} 9. Na3 {[%emt 0:00:30]} Bb4+ {[%emt 0:00:30]} 10. Bd2 {[%emt 0:00:30]} Bxd2+ {[%emt 0:00:30]} 11. Qxd2 {[%emt 0:00:30]} c3 {[%emt 0:00:30]} 12. Qxc3 {[%emt 0:00:30]} Bxf1 {[%emt 0:00:30]} 13. Kxf1 {[%emt 0:00:30]} O-O {[%emt 0:00:30]} 14. Nc4 {[%emt 0:00:30]} a5 {[%emt 0:00:30]} 15. Nxa5 {[%emt 0:00:30]} Qd5 {[%emt 0:00:30]} 16. b4 {[%emt 0:00:30]} Nxa4 {[%emt 0:00:30]} 17. Qd2 {[%emt 0:00:30]} Nc6 {[%emt 0:00:30]} 18. Nxc6 {[%emt 0:00:30]} Qxc6 {[%emt 0:00:30]} 19. h4 {[%emt 0:00:30]} Nc3 {[%emt 0:00:30]} 20. Re1 {[%emt 0:00:30]} Qc4+ {[%emt 0:00:30]} 21. Kg1 {[%emt 0:00:30]} Ra2 {[%emt 0:00:30]} 22. Qe3 {[%emt 0:00:30]} Nd5 {[%emt 0:00:30]} 23. Qe4 {[%emt 0:00:30]} Qc2 {[%emt 0:00:30]} 24. Qxc2 {[%emt 0:00:30]} Rxc2 {[%emt 0:00:30]} 25. Ra1 {[%emt 0:00:30]} Nxb4 {[%emt 0:00:30]} 26. h5 {[%emt 0:00:30]} h6 {[%emt 0:00:30]} 27. g3 {[%emt 0:00:30]} Nd5 {[%emt 0:00:30]} 28. Rh4 {[%emt 0:00:30]} Rb8 {[%emt 0:00:30]} 29. Re4 {[%emt 0:00:30]} Rbb2 {[%emt 0:00:30]} 30. Rf1 {[%emt 0:00:30]} Rb3 {[%emt 0:00:30]} 31. Nh4 {[%emt 0:00:30]} Ra2 {[%emt 0:00:30]} 32. Ree1 {[%emt 0:00:30]} Rbb2 {[%emt 0:00:30]} 33. Rb1 {[%emt 0:00:30]} Nc3 {[%emt 0:00:30]} 1/2-1/2

[Event "Winter CCCSA-IM 2020"]
[Site "Charlotte"]
[Date "2020.01.19"]
[Round "5.3"]
[White "Uyanga, Byambaa"]
[Black "Wheeler, Cameron"]
[Result "0-1"]
[ECO "C18"]
[WhiteElo "2113"]
[BlackElo "2383"]
[Annotator "RC"]
[PlyCount "72"]
[EventDate "2020.01.17"]
[EventType "tourn"]
[EventCountry "USA"]
[SourceTitle "playchess.com"]
[Source "ChessBase"]
[SourceQuality "1"]
[TimeControl "5400+30"]

1. e4 {[%emt 1:30:30]} e6 {[%emt 1:30:30]} 2. d4 d5 {[%emt 0:00:30]} 3. Nc3 {[%emt 0:01:00]} Bb4 {[%emt 0:00:30]} 4. e5 {[%emt 0:00:30]} c5 {[%emt 0:00:30]} 5. a3 {[%emt 0:00:30]} Bxc3+ {[%emt 0:00:30]} 6. bxc3 {[%emt 0:00:30]} Ne7 {[%emt 0:00:30]} 7. Qg4 {[%emt 0:00:30]} Qc7 {[%emt 0:00:30]} 8. Qxg7 {[%emt 0:00:30]} Rg8 {[%emt 0:00:30]} 9. Qxh7 {[%emt 0:00:30]} cxd4 {[%emt 0:00:30]} 10. Ne2 {[%emt 0:00:30]} Nbc6 {[%emt 0:00:30]} 11. f4 {[%emt 0:00:30]} dxc3 {[%emt 0:00:30]} 12. Qd3 {[%emt 0:00:30]} d4 {[%emt 0:00:30]} 13. Ng3 {[%emt 0:00:30]} Bd7 {[%emt 0:00:30]} 14. Rb1 {[%emt 0:00:30]} O-O-O {[%emt 0:00:30]} 15. Be2 {[%emt 0:00:30]} Nf5 {[%emt 0:00:30]} 16. Nxf5 {[%emt 0:00:30]} exf5 {[%emt 0:00:30]} 17. Bf3 {[%emt 0:00:30]} f6 {[%emt 0:00:30]} 18. exf6 {[%emt 0:00:30]} Rgf8 {[%emt 0:00:30]} 19. O-O {[%emt 0:00:30]} Rxf6 {[%emt 0:00:30]} 20. Re1 {[%emt 0:00:30]} Re8 {[%emt 0:00:30]} 21. Rxe8+ {[%emt 0:00:30]} Bxe8 {[%emt 0:00:30]} 22. a4 {[%emt 0:00:30]} Qe7 {[%emt 0:00:30]} 23. Kf2 {[%emt 0:00:30]} Re6 {[%emt 0:00:30]} 24. g3 {[%emt 0:00:30]} Re4 {[%emt 0:00:30]} 25. h4 {[%emt 0:00:30]} a6 {[%emt 0:00:30]} 26. h5 {[%emt 0:00:30]} Bf7 {[%emt 0:00:30]} 27. h6 {[%emt 0:00:30]} Bd5 {[%emt 0:00:30]} 28. Qf1 {[%emt 0:00:30]} d3 {[%emt 0:00:30]} 29. Qxd3 {[%emt 0:00:30]} Bc4 {[%emt 0:00:30]} 30. Qxc3 {[%emt 0:00:30]} Re2+ {[%emt 0:00:30]} 31. Kg1 {[%emt 0:00:30]} Qc5+ {[%emt 0:00:30]} 32. Kh1 {[%emt 0:00:30]} Qf2 {[%emt 0:00:30]} 33. Qh8+ {[%emt 0:00:30]} Nd8 {[%emt 0:00:30]} 34. Bxb7+ {[%emt 0:00:30]} Kc7 {[%emt 0:00:30]} 35. Qe5+ {[%emt 0:00:30]} Rxe5 {[%emt 0:00:30]} 36. fxe5 {[%emt 0:00:30]} Nxb7 {[%emt 0:00:30]} 0-1

[Event "Winter CCCSA-IM 2020"]
[Site "Charlotte"]
[Date "2020.01.19"]
[Round "5.5"]
[White "Eswaran, Ashritha"]
[Black "Li, Eric"]
[Result "1/2-1/2"]
[ECO "C54"]
[WhiteElo "2252"]
[BlackElo "2195"]
[Annotator "ChessBase"]
[PlyCount "54"]
[EventDate "2020.01.17"]
[EventType "tourn"]
[EventCountry "USA"]
[SourceTitle "playchess.com"]
[Source "ChessBase"]
[SourceQuality "1"]
[TimeControl "5400+30"]

1. e4 {[%emt 1:30:30]} e5 {[%emt 1:30:30]} 2. Nf3 {[%emt 0:00:30]} Nc6 {[%emt 0:00:30]} 3. Bc4 {[%emt 0:00:30]} Bc5 {[%emt 0:00:30]} 4. d3 {[%emt 0:00:30]} Nf6 {[%emt 0:00:30]} 5. O-O {[%emt 0:00:30]} d6 {[%emt 0:00:30]} 6. c3 {[%emt 0:00:30]} a6 {[%emt 0:00:30]} 7. a4 {[%emt 0:00:30]} O-O {[%emt 0:00:30]} 8. Nbd2 {[%emt 0:00:30]} h6 {[%emt 0:00:30]} 9. h3 {[%emt 0:00:30]} Re8 {[%emt 0:00:30]} 10. Re1 {[%emt 0:00:30]} Be6 {[%emt 0:00:30]} 11. b4 {[%emt 0:00:30]} Ba7 {[%emt 0:00:30]} 12. Nf1 {[%emt 0:00:30]} Nxe4 {[%emt 0:00:30]} 13. Rxe4 {[%emt 0:00:30]} d5 {[%emt 0:00:30]} 14. Bxd5 {[%emt 0:00:30]} Bxd5 {[%emt 0:00:30]} 15. Re1 {[%emt 0:00:30]} e4 {[%emt 0:00:30]} 16. dxe4 {[%emt 0:00:30]} Bxe4 {[%emt 0:00:30]} 17. Be3 {[%emt 0:00:30]} Qxd1 {[%emt 0:00:30]} 18. Rexd1 {[%emt 0:00:30]} Bxe3 {[%emt 0:00:30]} 19. Nxe3 {[%emt 0:00:30]} Rad8 {[%emt 0:00:30]} 20. Nd2 {[%emt 0:00:30]} Bg6 {[%emt 0:00:30]} 21. Ndf1 {[%emt 0:00:30]} Kf8 {[%emt 0:00:30]} 22. f4 {[%emt 0:00:30]} Bd3 {[%emt 0:00:30]} 23. Kf2 {[%emt 0:00:30]} Ne7 {[%emt 0:00:30]} 24. Rd2 {[%emt 0:00:30]} Bxf1 {[%emt 0:00:30]} 25. Rxd8 {[%emt 0:00:30]} Rxd8 {[%emt 0:00:30]} 26. Rxf1 {[%emt 0:00:30]} f5 {[%emt 0:00:30]} 27. Ke2 {[%emt 0:00:30]} Kf7 {[%emt 0:00:30]} 1/2-1/2

[Event "Winter CCCSA-IM 2020"]
[Site "Charlotte"]
[Date "2020.01.19"]
[Round "6.1"]
[White "Berczes, David"]
[Black "Martin Del Campo C., Roberto"]
[Result "1-0"]
[ECO "E62"]
[WhiteElo "2433"]
[BlackElo "2322"]
[Annotator "RC"]
[PlyCount "31"]
[EventDate "2020.01.17"]
[EventType "tourn"]
[EventCountry "USA"]
[SourceTitle "playchess.com"]
[Source "ChessBase"]
[SourceQuality "1"]
[TimeControl "5400+30"]

1. Nf3 {[%emt 1:30:30]} Nf6 {[%emt 1:30:30]} 2. g3 {[%emt 0:00:30]} g6 {[%emt 0:00:30]} 3. Bg2 {[%emt 0:00:30]} Bg7 {[%emt 0:00:30]} 4. d4 {[%emt 0:00:30]} O-O {[%emt 0:00:30]} 5. c4 {[%emt 0:00:30]} d6 {[%emt 0:00:30]} 6. Nc3 {[%emt 0:00:30]} c6 {[%emt 0:00:30]} 7. O-O {[%emt 0:00:30]} Qa5 {[%emt 0:00:30]} 8. Bd2 {[%emt 0:00:30]} Qh5 {[%emt 0:00:30]} 9. Qb3 {[%emt 0:00:30]} e5 {[%emt 0:00:30]} 10. dxe5 {[%emt 0:00:30]} dxe5 {[%emt 0:00:30]} 11. Ng5 {[%emt 0:00:30]} h6 {[%emt 0:00:30]} 12. Nge4 {[%emt 0:00:30]} Na6 {[%emt 0:00:30]} 13. Rad1 {[%emt 0:00:30]} Nc7 {[%emt 0:00:30]} 14. Nxf6+ {[%emt 0:00:30]} Bxf6 {[%emt 0:00:30]} 15. Ne4 {[%emt 0:00:30]} Be7 {[%emt 0:00:30]} 16. Bb4 {[%emt 0:00:30]} 1-0

[Event "Winter CCCSA-IM 2020"]
[Site "Charlotte"]
[Date "2020.01.19"]
[Round "6.3"]
[White "Wheeler, Cameron"]
[Black "Li, Eric"]
[Result "1/2-1/2"]
[ECO "E06"]
[WhiteElo "2383"]
[BlackElo "2195"]
[Annotator "RC"]
[PlyCount "38"]
[EventDate "2020.01.17"]
[EventType "tourn"]
[EventCountry "USA"]
[SourceTitle "playchess.com"]
[Source "ChessBase"]
[SourceQuality "1"]
[TimeControl "5400+30"]

1. d4 {[%emt 1:30:30]} Nf6 {[%emt 1:30:30]} 2. c4 {[%emt 0:00:30]} e6 {[%emt 0:00:30]} 3. g3 {[%emt 0:00:30]} d5 {[%emt 0:00:30]} 4. Nf3 {[%emt 0:00:30]} Bb4+ {[%emt 0:00:30]} 5. Bd2 {[%emt 0:00:30]} Be7 {[%emt 0:00:30]} 6. Bg2 {[%emt 0:00:30]} O-O {[%emt 0:00:30]} 7. O-O {[%emt 0:00:30]} c6 {[%emt 0:00:30]} 8. Bg5 {[%emt 0:00:30]} Nbd7 {[%emt 0:00:30]} 9. Nbd2 {[%emt 0:00:30]} b6 {[%emt 0:00:30]} 10. Qc2 {[%emt 0:00:30]} Bb7 {[%emt 0:00:30]} 11. Rad1 {[%emt 0:00:30]} Rc8 {[%emt 0:00:30]} 12. Qb1 {[%emt 0:00:30]} h6 {[%emt 0:00:30]} 13. Bxf6 {[%emt 0:00:30]} Nxf6 {[%emt 0:00:30]} 14. e4 {[%emt 0:00:30]} dxe4 {[%emt 0:00:30]} 15. Nxe4 {[%emt 0:00:30]} Qc7 {[%emt 0:00:30]} 16. Nxf6+ {[%emt 0:00:30]} Bxf6 {[%emt 0:00:30]} 17. c5 {[%emt 0:00:30]} Ba6 {[%emt 0:00:30]} 18. Rfe1 {[%emt 0:00:30]} Rfd8 {[%emt 0:00:30]} 19. b4 {[%emt 0:00:30]} bxc5 {[%emt 0:00:30]} 1/2-1/2

[Event "Winter CCCSA-IM 2020"]
[Site "Charlotte"]
[Date "2020.01.20"]
[Round "7.1"]
[White "Eswaran, Ashritha"]
[Black "Berczes, David"]
[Result "1/2-1/2"]
[ECO "C13"]
[WhiteElo "2252"]
[BlackElo "2433"]
[Annotator "RC"]
[PlyCount "64"]
[EventDate "2020.01.17"]
[EventType "tourn"]
[EventCountry "USA"]
[SourceTitle "playchess.com"]
[Source "ChessBase"]
[SourceQuality "1"]
[TimeControl "5400+30"]

1. e4 {[%emt 1:30:30]} e6 {[%emt 1:30:30]} 2. d4 {[%emt 0:00:30]} d5 {[%emt 0:00:30]} 3. Nc3 {[%emt 0:00:30]} Nf6 {[%emt 0:00:30]} 4. Bg5 {[%emt 0:00:30]} dxe4 {[%emt 0:00:30]} 5. Nxe4 {[%emt 0:00:30]} Be7 {[%emt 0:00:30]} 6. Bxf6 {[%emt 0:00:30]} gxf6 {[%emt 0:00:30]} 7. Nf3 {[%emt 0:00:30]} f5 {[%emt 0:00:30]} 8. Nc3 {[%emt 0:00:30]} a6 {[%emt 0:00:30]} 9. g3 {[%emt 0:00:30]} b5 {[%emt 0:00:30]} 10. Bg2 {[%emt 0:00:30]} Bb7 {[%emt 0:00:30]} 11. O-O {[%emt 0:00:30]} O-O {[%emt 0:00:30]} 12. Ne5 {[%emt 0:00:30]} Bxg2 {[%emt 0:00:30]} 13. Kxg2 {[%emt 0:00:30]} b4 {[%emt 0:00:30]} 14. Na4 {[%emt 0:00:30]} Qd5+ {[%emt 0:00:30]} 15. Qf3 {[%emt 0:00:30]} Qxf3+ {[%emt 0:00:30]} 16. Nxf3 {[%emt 0:00:30]} Nd7 {[%emt 0:00:30]} 17. Rfd1 {[%emt 0:00:30]} Nb6 {[%emt 0:00:30]} 18. Nc5 {[%emt 0:00:30]} Rfd8 {[%emt 0:00:30]} 19. Nd3 {[%emt 0:00:30]} Bf8 {[%emt 0:00:30]} 20. Rac1 {[%emt 0:00:30]} Na4 {[%emt 0:00:30]} 21. c3 {[%emt 0:00:30]} bxc3 {[%emt 0:00:30]} 22. bxc3 {[%emt 0:00:30]} c5 {[%emt 0:00:30]} 23. Nxc5 {[%emt 0:00:30]} Nb2 {[%emt 0:00:30]} 24. Rf1 {[%emt 0:00:30]} Bxc5 {[%emt 0:00:30]} 25. dxc5 {[%emt 0:00:30]} Rac8 {[%emt 0:00:30]} 26. Rb1 {[%emt 0:00:30]} Na4 {[%emt 0:00:30]} 27. Rb7 {[%emt 0:00:30]} Nxc5 {[%emt 0:00:30]} 28. Ra7 {[%emt 0:00:30]} Ne4 {[%emt 0:00:30]} 29. Ne5 {[%emt 0:00:30]} Rf8 {[%emt 0:00:30]} 30. Nd7 {[%emt 0:00:30]} Rfd8 {[%emt 0:00:30]} 31. Ne5 {[%emt 0:00:30]} Rf8 {[%emt 0:00:30]} 32. Nd7 {[%emt 0:00:30]} Rfd8 1/2-1/2